Cogmind - Beta 12 @@@ ROGUE MODE // 2023.12.24 @ 15:58:53 Player: Nihil Result: Destroyed by G-34 Mercenary with Small Laser Performance ------------- Evolutions (1) 500 Regions Visited (2) 400 Robots Destroyed (57) 285 Value Destroyed (1338) 1338 Prototype IDs (0) 0 Alien Tech Used (0) 0 Bonus (27) 27 TOTAL SCORE: 2550 Bonus ------- High Alert Combat Kills 27 Cogmind --------- Core Integrity 0/400 Matter 285/300 Energy 85/100 System Corruption 0% Temperature Cool (6) Movement Core (700) Ox13 Location -9/Materials Parts ------- > --- POWER (1) -------- (None) > --- PROPULSION (4) --- (None) > --- UTILITY (2) ------ High-capacity Storage Unit Targeting Computer > --- WEAPON (2) ------- Small Laser > --- INVENTORY (20) --- Improved Terrain Scanner Targeting Computer Peak State ------------ > --- POWER ------------ Light Nuclear Core > --- PROPULSION ------- Aluminum Leg Aluminum Leg Aluminum Leg Aluminum Leg > --- UTILITY ---------- High-capacity Storage Unit Targeting Computer > --- WEAPON ----------- Grenade Launcher > --- INVENTORY -------- Aluminum Leg Improved Terrain Scanner Targeting Computer [Rating: 10] Favorites ----------- Power Ion Engine Engine Ion Engine Power Core Light Nuclear Core Propulsion Aluminum Leg Leg Aluminum Leg Utility High-capacity Storage Unit Device Seismic Detector Storage High-capacity Storage Unit Processor Targeting Computer Weapon Grenade Launcher Energy Gun Medium Laser Ballistic Gun Assault Rifle Launcher Grenade Launcher Build | -11 -10 -9 ------- Run | Jun Mat Mat Slots Evolved 2 | . . 2 Power . | . . . Propulsion 2 | . . 2 Utility . | . . . Weapon . | . . . Parts Attached 30 | 7 8 15 Power 6 | 1 2 3 Engine 5 | 1 2 2 Core 1 | . . 1 Reactor . | . . . Propulsion 10 | 2 2 6 Treads . | . . . Leg 10 | 2 2 6 Wheel . | . . . Hover . | . . . Flight . | . . . Utility 4 | 2 2 . Device 1 | 1 . . Storage 2 | 1 1 . Processor 1 | . 1 . Hackware . | . . . Protection . | . . . Artifact . | . . . Weapon 10 | 2 2 6 Energy Gun 5 | 1 . 4 Energy Cannon . | . . . Ballistic Gun 2 | 1 . 1 Ballistic Cannon . | . . . Launcher 3 | . 2 1 Special Weapon . | . . . Impact Weapon . | . . . Slashing Weapon . | . . . Piercing Weapon . | . . . Special Melee Weapon . | . . . Unidentified Prototypes . | . . . Parts Lost 21 | . 4 17 Power 4 | . 1 3 Propulsion 10 | . 2 8 Utility 1 | . 1 . Weapon 6 | . . 6 Highest Loss Streak 8 | . 1 8 To Critical Strikes 1 | . . 1 Average Slot Usage (%) 90 | . 93 84 Engine 12 | . 13 8 Leg 28 | . 27 31 Device 3 | . 4 . Storage 13 | . 14 11 Processor 5 | . 3 11 Energy Gun 8 | . 5 14 Ballistic Gun 4 | . 5 2 Launcher 12 | . 16 3 Naked Turns . | . . . Heaviest Build 51 | 15 51 51 Greatest Support 40 | 20 20 40 Greatest Overweight (x) 15 | 1 4 15 Average Overweight (x) 1 | . 1 1 Largest Inventory Capacity 20 | 8 20 20 Average Capacity 19 | 7 19 20 Most Carried 9 | 5 9 8 Average Carried 4 | 2 4 3 Final Capacity 20 | 8 20 20 Final Carried 9 | 2 9 2 Class Distribution -------------------- 78% | Mutant 21% | Scavenger-Mutant Dominant Class ---------------- Mutant | -10/Materials Scavenger-Mutant | -9/Materials Resources | -11 -10 -9 ----------- Run | Jun Mat Mat Matter Collected 952 | 275 393 284 Remotely . | . . . Salvage Created 1461 | 93 692 676 Parts 98 | 5 52 41 Haulers Intercepted . | . . . Recyclers Shooed 3 | . 1 2 Parts Field Recycled . | . . . Retrieved Matter . | . . . Parts Self-Destructed . | . . . Prevented . | . . . Kills | -11 -10 -9 ------- Run | Jun Mat Mat Combat Hostiles Destroyed 39 | . 21 18 Guns 21 | . 10 11 AOE 18 | . 11 7 Classes Destroyed 9 | 2 6 1 Worker 3 | . 2 1 Builder 2 | . 2 . Tunneler 3 | 1 2 . Recycler 3 | 1 1 1 Operator 2 | . 2 . Watcher 5 | . 3 2 Swarmer 11 | . 8 3 Grunt 25 | . 13 12 Sentry 3 | . . 3 Best Kill Streak 6 | 1 6 4 Combat Bots Only 4 | . 3 4 Max Kills in Single Turn 6 | 1 6 2 Gunslinging . | . . . Exploded 3 | . 3 2 Melee . | . . . Uniques/NPCs Destroyed . | . . . Combat | -11 -10 -9 -------- Run | Jun Mat Mat Damage Taken 2256 | . 915 1341 Core 583 | . 175 408 Absorbed by Shields . | . . . Core Remaining (%) 65 | 100 30 . Volleys Fired 136 | 6 69 61 Largest 2 | 2 2 2 Hottest 100 | 70 70 100 Shots Fired 245 | 12 138 95 Gun 213 | 12 120 81 Cannon . | . . . Launcher 32 | . 18 14 Special . | . . . Kinetic 73 | 6 60 7 Thermal 140 | 6 60 74 Explosive 32 | . 18 14 Electromagnetic . | . . . Robot Hit Streak 15 | 6 10 15 Robot Miss Streak 4 | 2 4 3 Penetration Max . | . . . Secondary Targets 1 | . . 1 Max Gunslinging Chain 1 | . . 1 Shots Hit Robots 151 | 9 82 60 Core Hits 92 | 3 47 42 Critical Kills . | . . . Critical Parts Destroyed . | . . . Critical Strikes 9 | . 3 6 Burn 9 | . 3 6 Melee Attacks . | . . . Impact . | . . . Slashing . | . . . Piercing . | . . . Sneak Attacks . | . . . Combat Hostiles . | . . . Follow-up Attacks . | . . . Damage Inflicted 3724 | 110 2417 1197 Guns 1806 | 110 1024 672 Cannons . | . . . Explosions 1898 | . 1375 523 Melee . | . . . Ramming 20 | . 18 2 Kinetic 628 | 59 535 34 Thermal 1332 | 51 643 638 Explosive 1744 | . 1221 523 Electromagnetic . | . . . Impact . | . . . Slashing . | . . . Piercing . | . . . Highest Corruption . | . . . Average Corruption . | . . . Corruption Purged . | . . . Corruption Blocked . | . . . Overload Shots . | . . . Overflow Damage 86 | . 86 . Projectiles . | . . . Explosions 86 | . 86 . Melee . | . . . Knockbacks 1 | . 1 . Impact 1 | . 1 . Kinetic . | . . . Secondary . | . . . Self-Inflicted Damage 132 | . 64 68 Shots 6 | . 3 3 Rammed . | . . . Targets Rammed 4 | . 3 1 Kicked 4 | . 3 1 Crushed . | . . . Highest Temperature 380 | 36 261 380 Average Temperature 94 | 16 93 105 Received Heat Transfer 1017 | . 450 567 Effects 3 | . 1 2 Energy Bleed 2 | . 1 1 Damage (minor) 1 | . . 1 Siege Activations . | . . . Robots Corrupted . | . . . Combat Hostiles . | . . . Parts Fried . | . . . Impact Corruptions . | . . . Robots Melted . | . . . Combat Hostiles . | . . . Parts Melted 12 | 1 3 8 Heat Transferred 4244 | 148 1765 2331 Parts Sabotaged . | . . . Parts Stolen . | . . . Parts Stripped . | . . . Power Chain Reactions . | . . . Missiles Intercepted . | . . . Alert | -11 -10 -9 ------- Run | Jun Mat Mat Peak Influence 479 | 10 406 479 Initial 170 | . 6 170 Average 169 | 4 116 322 Maximum Alert Level 2 | . 2 2 Low Security (%) 61 | 100 77 17 Level 1 29 | . 18 61 Level 2 8 | . 4 20 Level 3 . | . . . Level 4 . | . . . Level 5 . | . . . High Security . | . . . Max Security . | . . . Squads Dispatched 5 | . 4 1 Investigation 4 | . 3 1 Extermination . | . . . Reinforcement 1 | . 1 . Assault . | . . . Garrison . | . . . Intercept . | . . . Searches Triggered . | . . . Construction Impeded . | . . . Haulers Reinforced . | . . . Active Scanning Responses . | . . . Cargo Convoy Interrupts . | . . . Stealth | -11 -10 -9 --------- Run | Jun Mat Mat Distress Signals 3 | . 1 2 Communications Jammed . | . . . Distress Signals . | . . . Times Spotted 52 | . 31 21 Peak Tracking Total 5 | . 4 5 Tactical Retreats 7 | . 6 1 Traps | -11 -10 -9 ------- Run | Jun Mat Mat Traps Triggered 2 | . 2 . Indirectly . | . . . Trap Hack Attempts . | . . . Triggered . | . . . Disarmed 4 | . 4 . Reprogrammed . | . . . Reused . | . . . Traps Extracted . | . . . Installed . | . . . Triggered . | . . . Machines | -11 -10 -9 ---------- Run | Jun Mat Mat Machines Disabled 4 | . 3 1 Max in Single Turn 2 | . 2 1 Machines Repaired . | . . . Machines Sabotaged . | . . . Overloaded Fab Kills . | . . . Hacking | -11 -10 -9 --------- Run | Jun Mat Mat Machines Accessed 6 | . 4 2 Terminals 6 | . 4 2 Fabricators . | . . . Repair Stations . | . . . Recycling Units . | . . . Scanalyzers . | . . . Garrison Access . | . . . Total Hacks 26 | . 18 8 Successful 8 | . 5 3 Failed 18 | . 13 5 Catastrophic 1 | . . 1 Database Lockouts . | . . . Manual . | . . . Terminals 26 | . 18 8 Fabricators . | . . . Repair Stations . | . . . Recycling Units . | . . . Scanalyzers . | . . . Garrison Access . | . . . Terminal Hacks 8 | . 5 3 Record 2 | . . 2 Robot Analysis 2 | . 1 1 Locate Traps 1 | . 1 . Disarm Traps 1 | . 1 . Dispatch Records 1 | . 1 . Hauler Manifests 1 | . 1 . Fabricator Hacks . | . . . Repair Station Hacks . | . . . Recycling Unit Hacks . | . . . Scanalyzer . | . . . Garrison Access Hacks . | . . . Unauthorized Hacks . | . . . Terminals . | . . . Fabricators . | . . . Repair Stations . | . . . Recycling Units . | . . . Scanalyzers . | . . . Garrison Access . | . . . Data Cores Recovered . | . . . Used . | . . . Hacking Detections 6 | . 4 2 Full Trace Events 4 | . 2 2 Feedback Events . | . . . Feedback Blocked . | . . . Robot Schematics Acquired . | . . . Robots Built . | . . . Authchips . | . . . Time . | . . . Total Robot Build Rating . | . . . Part Schematics Acquired . | . . . Parts Built . | . . . Authchips . | . . . Time . | . . . Total Part Build Rating . | . . . Parts Repaired . | . . . Time . | . . . Parts Recycled . | . . . Recycled Matter . | . . . Retrieved Matter . | . . . Retrieved Components . | . . . Parts Scanalyzed . | . . . Part Schematics Acquired . | . . . Parts Damaged . | . . . Bothacking | -11 -10 -9 ------------ Run | Jun Mat Mat Used RIF Installer . | . . . Robots Hacked . | . . . Non-combat . | . . . Combat . | . . . Robot Hacks Applied . | . . . Relay Couplers Released . | . . . Fabnet Peak Effective % . | . . . Robots Rewired . | . . . Allies Hacked . | . . . Hacks Repelled . | . . . Allies | -11 -10 -9 -------- Run | Jun Mat Mat Total Allies . | . . . Largest Group . | . . . Highest-Rated Group . | . . . Highest-Rated Ally . | . . . Total Orders . | . . . Ally Attacks . | . . . Total Damage . | . . . Kills . | . . . Allies Corrupted . | . . . Allies Melted . | . . . Intel | -11 -10 -9 ------- Run | Jun Mat Mat Robot Analysis Total 2 | . 1 1 Derelict Logs Recovered . | . . . Drone Launches . | . . . Drone Recoveries . | . . . Exploration | -11 -10 -9 ------------- Run | Jun Mat Mat Turns Passed 2927 | 115 1997 815 Spaces Moved 1036 | 62 711 263 Core 16 | 13 . 3 Treads . | . . . Legs 1020 | 49 711 260 Wheels . | . . . Hover . | . . . Flight . | . . . Fastest Speed 50 | 50 120 190 Average Speed 231 | 106 245 224 Slowest Speed 800 | 120 400 800 Overloaded Moves . | . . . Propulsion Burnouts . | . . . Robots Hopped . | . . . Cave-ins Triggered . | . . . Exploration Rate (%) 44 | 5 97 31 Regions Visited 2 Branch Regions . Pre-discovered Areas . | . . . Known Exits Taken . | . . . Unknown Exits Taken 2 | 1 1 . Scrap Searched . | . . . Spaces Dug 14 | . 14 . Terrain Destroyed 188 | . 119 69 Melee . | . . . Projectile . | . . . AOE 188 | . 119 69 Terrain Rammed . | . . . Walls Destroyed . | . . . Machines Disabled . | . . . Actions | -11 -10 -9 --------- Run | Jun Mat Mat Total 1313 | 99 823 391 Wait 73 | 16 18 39 Move 1034 | 61 710 263 Hop . | . . . Pick Up 31 | 9 13 9 Fast Attach . | . . . Attach 24 | 7 4 13 Detach . | . . . Swap 6 | . 4 2 Drop 5 | . 2 3 Fire 136 | 6 69 61 Melee . | . . . Ram . | . . . Kick 4 | . 3 1 Crush . | . . . Escape Stasis . | . . . Rewire . | . . . Trap . | . . . Miscellaneous . | . . . Route ------- -11/Junkyard -10/Materials (discovered 4 exits: *Mat x3 / [*Min]) -9/Materials (discovered 1 exit: [*Min]) History --------- Turn | Location | Event 5 | -11/Junkyard | Discovered new exit (range 16) 116 | -11/Junkyard | Entered Materials 311 | -10/Materials | Build established: Mutant 464 | -10/Materials | Discovered new exit (range 14) 781 | -10/Materials | Core integrity fell below 50% 1606 | -10/Materials | Discovered new exit (range 10) 1724 | -10/Materials | Discovered new exit (range 10) 1908 | -10/Materials | Discovered new exit (range 7) 2113 | -10/Materials | Entered another Materials area 2113 | -9/Materials | Evolved 2 slots: Propulsion x2 2402 | -9/Materials | Lost 8 parts (2p3n3w) 2517 | -9/Materials | Discovered new exit (range 14) 2888 | -9/Materials | Core integrity fell below 50% 2918 | -9/Materials | Core integrity fell below 20% 2928 | -9/Materials | Destroyed by G-34 Mercenary with Small Laser Last Messages --------------- not eager to enter the X-57's optimal range, giving other units an opportunity to flank them. ALERT: Suspicious activity at Terminal M010. Dispatching Investigation squad. G-34 Mercenary suffers critical hit (Burn). Heat Sink melted. G-34 Mercenary destroyed. Aluminum Leg destroyed. R-06 Scavenger collects Aluminum Leg. G-34 Mercenary destroyed. R-06 Scavenger collects Ion Engine. Aluminum Leg destroyed. S-10 Pest destroyed. R-06 Scavenger suffers critical hit (Burn). Med. Laser destroyed. Lgt. Ion Engine destroyed. Critical hit (Destroy). Med. Laser destroyed. S-10 Pest destroyed. Med. Laser destroyed. Acquired Sml. Laser. Map ----- +----------------------------------------------------+ | # ########?????????????????????????????? | | # #?????????????????????????????? | | = #?????????????????????????????? | | * #?????????????????????????????? | | # #?????????????????????????????? | | ######???????????????????????????????? | | = ########??????????????????????????????? | | #[ #??????????????????????????????? | | # #??????????????????????????????? | | # #?????????? ?????????????????? | | # ########?????????# #????????????????? | | # #########????????# #????????????????? | | # #????????# #????????????????? | | # # [ "" #????????# #????????????????? | | # """?????????# #????????????????? | | # # """ S"#????????# #????????????????? | | # # """ """?????????# #????????????????? | | #==# """ """?####????# ########?????????? | | =%!## """ ???? ???# # T?????????? | | ##!## """ ?????""" ???# # ?????????? | | ## ## ???# """ ??# # """ ?????????? | | ?# #??###+##?# """ ?# # """""?????????? | | ##+##### #?# * # # """""?????????? | | + + "S %[# # """"" #???????? | | "" ## #?? """ ==g% %+% """ #???????? | | "" ! ## #?# "" #* @# #???????? | | "" ## #?# ??# % # #???????? | | ## #?###+#???##gu*##########???????? | | "" | ## ^^##### ##### =[ #???????????????? | | "" ## " #???????????????? | | "" !## "T #???????????????? | | ## #???????????????? | | #####/## ########## #???????????????? | | + ![ ### ########?????????? | | # [/ #?# # #?????????? | | [ #= #?# # """ #?????????? | | #########%%*# #?# + """ #?????????? | | ????#]] % ##+######## # """ #?????????? | | ????#]] # #?????????? | | ????#!! ###### #| #?????????? | | ????#!! #????# ########?????????? | | ????#!! #### #????# # #?????????? | | ????#!! ???# #???# # #?????????? | | ????####???#!!!!**#???# + #?????????? | | ???????????#!!!!**#???# # #?????????? | | ???????????########???# # "T" #?????????? | | ??????????????????????# # """ #?????????? | | ??????????????????????# #########????????? | | ??????????????????????# # !== ]#????????? | | ??????????????????????# # === #????????? | +----------------------------------------------------+ Best States ------------- Heat Dissipation 28 Energy Generation 14 Energy Capacity 250 Matter Stores 300 Matter Capacity 300 Sight Range 16 Terrain Scan Density 10 Evasion (%) 55 Targeting Accuracy 5 Item Schematics ----------------- None Robot Schematics ------------------ None Fabricated ------------ Nothing Alien Tech Used ----------------- None Achievements -------------- None Challenges ------------ None Game ------ Seed HypercooledNodeShockpuncher Manual? 0 Play Time 00:22:08 Cumulative 7.0 hours Start 2023.12.24 @ 04:43:40 End 2023.12.24 @ 15:58:53 Sessions 4 Manual Loads 0 Difficulty Rogue Special Mode None Game No. 7 Rogue 7 Adventurer 0 Explorer 0 Win Type - Total 0 Types 0/0/0/0/0/0/0/0/0 Lore% 8 Gallery% 9 Achievement% 10 Wizard Run 0 Options --------- ASCII 0 Keyboard 1 Movement Numpad Keybinds 0 Fullscreen 1 Font 14/ProggyBold Map View 84x54 Tactical HUD 0 Map Filters NONE Filters NONE Steam 1 RUN: 6fa655c4-10c6-42d2-b719-42ab886801d4